bitfinex-derivatives/quotes_SOLF0:USTF0_20260213
["timestamp","ask_amount","ask_price","bid_price","bid_amount"]
[1770941821827,101.98,78.296,78.171,15.61457963]
[1770941821828,4.42972028,78.249,78.171,15.61457963]
[1770941822021,4.42972028,78.249,78.119,179.3649]
[1770941822022,4.42972028,78.199,78.15,3.71550886]
[1770941822225,4.42972028,78.197,78.16,3.71550886]
[1770941822426,4.42972028,78.197,78.15,3.71550886]
[1770941822626,4.42972028,78.197,78.16,3.71550886]
[1770941822829,4.42972028,78.219,78.17,3.71550886]
[1770941823430,4.42973745,78.249,78.21,3.71550886]
[1770941823633,4.42973745,78.249,78.2,3.71550886]
[1770941823928,3.71550886,78.27,78.22,3.71550886]
[1770941824236,15.65667273,78.309,78.174,101.98]
[1770941824237,4.44142142,78.269,78.23,3.71550886]
[1770941824526,4.44142142,78.259,78.21,3.71550886]
[1770941824731,4.44142142,78.249,78.2,3.71550886]
[1770941825333,4.44142142,78.249,78.181,2.22478655]
[1770941825537,4.44143786,78.226,78.162,11.5242]
[1770941825726,4.44143786,78.219,78.17,3.71550886]
[1770941825925,11.5174,78.209,78.17,3.71550886]
[1770941826120,102.0,78.244,78.15,11.526]
[1770941826121,4.50464636,78.208,78.15,11.526]
[1770941826326,4.50464636,78.199,78.151,2.22555487]
[1770941826525,3.71550886,78.2,78.08,23.0727]
[1770941826526,4.50464636,78.195,78.15,3.71550886]
[1770941827230,11.5196,78.194,78.15,3.71550886]
[1770941827631,4.50464636,78.195,78.15,3.71550886]
[1770941828032,102.0,78.221,78.16,3.71550886]
[1770941828033,4.44143065,78.22,78.16,3.71550886]
[1770941828230,4.44143065,78.219,78.16,3.71550886]
[1770941828426,4.44143065,78.199,78.15,3.71550886]
[1770941829432,4.44144635,78.189,78.14,3.71550886]
[1770941829631,4.44144635,78.189,78.13,3.71550886]
[1770941829937,4.46648755,78.179,78.13,3.71550886]
[1770941830427,4.46648755,78.179,78.121,2.2264804]
[1770941830428,4.46648755,78.166,78.121,2.2264804]
[1770941830632,4.46648755,78.166,78.066,3.64332812]
[1770941830633,4.46648755,78.166,78.12,3.71550886]
[1770941830935,4.46650222,78.186,78.13,3.71550886]
[1770941831132,4.46650222,78.186,78.118,11.5307]
[1770941831330,4.46650222,78.179,78.13,3.71550886]
[1770941831841,4.46650222,78.179,78.12,3.71550886]
[1770941832624,3.71550886,78.17,78.12,3.71550886]
[1770941832834,4.4397552,78.169,78.12,3.71550886]
[1770941833135,4.43977024,78.159,78.11,3.71550886]
[1770941833338,4.43977024,78.155,78.11,3.71550886]
[1770941833937,11.5255,78.154,78.11,3.71550886]
[1770941834141,179.1705,78.205,78.097,11.5338]
[1770941834142,4.43410786,78.169,78.13,3.71550886]
[1770941834336,11.522,78.178,78.14,3.71550886]
[1770941834531,4.43410786,78.187,78.14,3.71550886]
[1770941834935,4.43410786,78.187,78.15,3.71550886]
[1770941835132,4.43410786,78.187,78.115,102.06]
[1770941835329,4.43410786,78.187,78.14,3.71550886]
[1770941835535,102.06,78.202,78.092,2.22719287]
[1770941835536,4.4341227,78.174,78.13,3.71550886]
[1770941836133,102.06,78.202,78.1,102.08]
[1770941836134,4.4596775,78.189,78.14,3.71550886]
[1770941836341,3.71550886,78.18,78.13,3.71550886]
[1770941836538,4.4596775,78.179,78.13,3.71550886]
[1770941836934,4.4596775,78.179,78.11,8.32008571]
[1770941837135,4.4596775,78.179,78.128,11.5292]
[1770941837635,4.4596775,78.179,78.11,8.32008571]
[1770941838836,4.47007962,78.176,78.116,11.5311]
[1770941839535,11.5227,78.173,78.116,11.5311]
[1770941839736,4.47009291,78.172,78.124,11.5298]
[1770941842034,11.5214,78.182,78.11,8.32008571]
[1770941842240,4.47657998,78.191,78.132,11.5287]
[1770941843339,4.47659252,78.178,78.121,11.5302]
[1770941843841,4.47905847,78.205,78.148,11.5263]
[1770941844047,4.47905847,78.239,78.15,8.32008571]
[1770941845148,4.47907067,78.225,78.173,11.5226]
[1770941845950,4.47907067,78.223,78.173,11.5226]
[1770941846644,4.44758971,78.199,78.12,8.32008571]
[1770941847751,4.44760233,78.19,78.141,11.5272]
[1770941848146,4.36459772,78.187,78.093,102.12]
[1770941848346,4.36459772,78.179,78.1,8.32008571]
[1770941849242,4.36461185,78.174,78.1,8.32008571]
[1770941850854,4.36461185,78.174,78.126,11.5295]
[1770941852459,4.36461185,78.174,78.101,102.12]
[1770941853863,4.36461185,78.174,78.124,11.5298]
[1770941854362,15.88413168,78.172,78.124,11.5298]
[1770941854761,4.36133168,78.19,78.134,11.5284]
[1770941855161,4.36134463,78.187,78.134,11.5284]
[1770941857264,11.5205,78.188,78.141,11.5273]
[1770941857771,4.36033575,78.187,78.12,110.44008571]
[1770941858865,4.36033575,78.187,78.133,11.5285]
[1770941860067,4.36033575,78.187,78.14,11.5275]
[1770941860568,4.26664531,78.174,78.103,102.12]
[1770941861364,4.26664531,78.174,78.13,11.5289]
[1770941861867,4.21605895,78.199,78.105,0.0565981]
[1770941862060,4.21605895,78.199,78.121,0.0565981]
[1770941862859,4.21605895,78.19,78.14,11.58384544]
[1770941863258,11.5207,78.187,78.141,0.0562657]
[1770941863462,4.21607337,78.186,78.141,0.0562657]
[1770941864666,11.521,78.185,78.141,0.0562657]
[1770941865071,4.21236787,78.184,78.141,0.0562657]
[1770941868565,4.21236787,78.184,78.095,23.74046862]
[1770941868566,4.23302496,78.159,78.105,0.02163359]
[1770941868774,4.23302496,78.159,78.107,0.02163359]
[1770941869773,4.23302496,78.159,78.109,0.02146645]
[1770941870573,4.23302496,78.159,78.111,0.17900354]
[1770941870784,8.32008571,78.18,78.111,0.17900354]
[1770941870785,4.15419999,78.172,78.111,0.17900354]
[1770941871371,4.15419999,78.172,78.123,11.53]
[1770941872178,4.15419999,78.172,78.115,0.18808427]
[1770941872780,4.15419999,78.172,78.118,11.5308]
[1770941873373,4.14960475,78.17,78.118,11.5308]
[1770941874274,4.14960475,78.17,78.066,50.46069674]
[1770941874275,4.09979285,78.15,78.082,2.40695888]
[1770941874477,4.09979285,78.148,78.082,2.40695888]
[1770941874674,4.09979285,78.146,78.082,2.40695888]
[1770941875785,4.09979285,78.145,78.087,2.40680045]
[1770941876484,4.09979285,78.141,78.087,2.40680045]
[1770941877876,4.09979285,78.141,78.09,2.52285804]
[1770941881385,4.09979285,78.141,78.083,102.16]
[1770941881587,3.86890775,78.129,78.067,3.90913017]
[1770941881793,3.86890775,78.129,78.066,3.64332812]
[1770941882091,8.3270032,78.13,78.066,3.64332812]
[1770941882092,3.86890775,78.128,78.066,7.55245829]
[1770941882294,3.86890775,78.128,78.067,3.90913017]
[1770941882880,11.528,78.137,78.067,3.90913017]
[1770941882881,3.86890775,78.126,78.067,3.90913017]
[1770941883783,3.86890775,78.126,78.069,3.90913017]
[1770941885294,3.86890775,78.126,78.071,3.90913017]
[1770941885589,3.86890775,78.119,78.045,3.90913017]
[1770941886690,3.86890775,78.119,78.052,3.90913017]
[1770941887586,13.73,78.127,78.04,8.3270032]
[1770941887587,3.86890775,78.115,78.054,3.90913017]
[1770941888381,3.86890775,78.115,78.037,2.2284622]
[1770941888588,3.86890775,78.08,78.023,3.90913017]
[1770941889588,3.86890775,78.08,77.944,23.8915766]
[1770941889589,3.86890775,78.068,78.006,3.90913017]
[1770941890294,3.86890775,78.068,78.0,8.3270032]
[1770941890295,3.86890775,78.068,78.018,3.90913017]
[1770941891199,3.86890775,78.085,78.021,3.90913017]
[1770941892292,3.86890775,78.083,78.023,11.5448]
[1770941892691,8.3270032,78.1,78.004,102.2]
[1770941892692,11.5396,78.059,78.004,3.90913017]
[1770941892891,3.86890775,78.061,78.004,3.90913017]
[1770941893296,3.86890775,78.061,78.006,11.5473]
[1770941893697,3.86890775,78.061,78.007,3.90913017]
[1770941893903,3.86890775,78.061,78.02,8.3270032]
[1770941894112,3.86890775,78.08,78.021,3.90913017]
[1770941894493,3.86890775,78.078,78.021,3.90913017]
[1770941895796,3.86890775,78.078,78.024,3.90913017]
[1770941896703,3.86890775,78.078,78.036,11.5428]
[1770941897003,3.86890775,78.078,78.036,15.45193017]
[1770941897596,3.86890775,78.078,78.037,3.90913017]
[1770941899494,3.86890775,78.092,78.041,11.5421]
[1770941899700,3.86890775,78.092,78.041,15.45123017]
[1770941900899,3.86890775,78.087,78.041,3.90913017]
[1770941903701,3.86890775,78.087,78.044,11.5416]
[1770941905001,3.86890775,78.087,78.029,3.90913017]
[1770941905899,3.86890775,78.087,78.051,11.5406]
[1770941908405,3.86890775,78.087,78.029,3.90913017]
[1770941908406,3.86890775,78.087,78.043,11.5418]
[1770941912102,3.88713584,78.097,78.048,3.92697555]
[1770941912297,3.88713584,78.097,78.003,179.6322]
[1770941912298,3.88713584,78.139,78.061,3.92697555]
[1770941912707,3.88713584,78.122,78.074,11.5371]
[1770941912902,3.88713584,78.122,78.061,3.92697555]
[1770941914508,3.88713584,78.12,78.061,3.92697555]
[1770941915209,3.88713584,78.107,78.061,3.92697555]
[1770941915907,15.41803584,78.118,78.071,3.92697555]
[1770941916111,3.88713584,78.117,78.071,3.92697555]
[1770941916413,3.88713584,78.115,78.071,3.92697555]
[1770941917006,15.41653584,78.128,78.077,3.92697555]
[1770941917204,3.88713584,78.127,78.077,3.92697555]
[1770941918709,3.88713584,78.124,78.078,11.5367]
[1770941919214,3.88713584,78.124,78.078,15.46367555]
[1770941920698,3.88713584,78.124,78.079,11.5365]
[1770941920906,3.88713584,78.124,78.08,3.73227446]
[1770941921311,3.88713584,78.124,78.083,11.5359]
[1770941923405,9.28,78.123,78.083,11.5359]
[1770941923711,9.28,78.123,78.078,3.92697555]
[1770941925410,13.16713584,78.123,78.078,3.92697555]
[1770941927610,9.28,78.123,78.09,3.73227446]
[1770941927810,9.28,78.123,78.091,3.92697555]
[1770941928003,9.28,78.123,78.09,3.73227446]
[1770941928004,3.88713584,78.122,78.07,3.73227446]
[1770941928811,3.88713584,78.122,78.071,3.92697555]
[1770941929617,3.88713584,78.122,78.079,11.5364]
[1770941933612,3.88713584,78.122,78.084,11.5358]
[1770941934516,3.88713584,78.109,78.059,3.92697555]
[1770941934917,3.88713584,78.109,78.064,11.5386]
[1770941935120,3.88713584,78.109,78.065,3.92697555]
[1770941935521,3.88713584,78.109,78.064,11.5387]
[1770941936930,3.88713584,78.109,78.07,11.5377]
[1770941937524,3.88713584,78.109,78.076,11.5368]
[1770941937725,9.28,78.123,78.081,3.92697555]
[1770941938622,9.28,78.123,78.09,3.73227446]
[1770941938930,3.88713584,78.15,78.11,3.73227446]
[1770941939328,3.88713584,78.15,78.101,3.92697555]
[1770941939720,3.88713584,78.15,78.102,11.5331]
[1770941940527,6.58056529,78.139,78.08,3.73227446]
[1770941940729,6.58056529,78.129,78.08,3.73227446]
[1770941940929,6.58056529,78.129,78.08,3.73218176]
[1770941941327,6.58079938,78.119,78.071,11.5377]
[1770941943025,6.51914212,78.133,78.09,3.73218176]
[1770941943227,6.51914212,78.149,78.1,3.73218176]
[1770941943530,23.0387,78.196,78.056,38.48]
[1770941943531,3.73218176,78.13,78.069,15.90300515]
[1770941943730,3.73218176,78.13,78.07,3.73218176]
[1770941943731,6.51914212,78.129,78.07,3.73218176]
[1770941944035,6.51914212,78.129,78.08,3.73218176]
[1770941944735,6.51914212,78.129,78.07,3.73218176]
[1770941945635,6.51914212,78.129,78.08,3.73218176]
[1770941946230,6.51914212,78.129,78.081,11.5362]
[1770941947531,11.89910833,78.163,78.108,11.5322]
[1770941947532,9.83,78.132,78.108,11.5322]
[1770941947736,9.83,78.132,78.11,3.73218176]
[1770941947939,6.43935636,78.159,78.11,3.73218176]
[1770941948440,6.43935636,78.159,78.112,11.5315]
[1770941948739,6.44038211,78.148,78.09,3.73218176]
[1770941949238,6.44038211,78.148,78.102,11.5331]
[1770941950539,6.49630137,78.145,78.091,11.5347]
[1770941951639,6.49630137,78.145,78.098,11.5337]
[1770941951835,6.49630137,78.145,78.11,3.73218176]
[1770941952031,6.49633429,78.169,78.11,3.73218176]
[1770941952236,6.49633429,78.167,78.112,11.5317]
[1770941952442,6.49633429,78.167,78.12,3.73218176]
[1770941952841,6.49633429,78.167,78.119,11.5305]
[1770941953640,11.5237,78.166,78.111,11.5317]
[1770941954037,18.01817832,78.166,78.111,11.5317]
[1770941954951,11.97,78.165,78.111,11.5317]
[1770941955552,18.46447832,78.165,78.111,11.5317]
[1770941956252,6.49641597,78.161,78.111,11.5317]
[1770941956847,6.49641597,78.161,78.118,11.5307]
[1770941959556,6.49641597,78.161,78.1,8.32168672]
[1770941959557,6.49641597,78.161,78.125,11.5297]
[1770941961851,6.49641597,78.161,78.117,11.5308]
[1770941963256,6.49641597,78.161,78.111,102.18]
[1770941964248,6.50947143,78.154,78.1,11.5333]
[1770941965359,6.50947143,78.152,78.1,11.5333]
[1770941965845,6.50947143,78.152,78.099,102.16]
[1770941966048,6.49080398,78.164,78.1,8.32168672]
[1770941966248,6.49080398,78.164,78.101,102.16]
[1770941966860,6.49080398,78.164,78.116,11.531]
[1770941970955,11.97,78.165,78.116,11.531]
[1770941970956,6.47903443,78.162,78.116,11.531]
[1770941971859,11.5248,78.159,78.116,11.531]
[1770941972162,6.47826248,78.158,78.116,11.531]
[1770941973851,6.47801299,78.149,78.09,3.72894038]
[1770941974248,6.47801299,78.149,78.1,3.72894038]
[1770941974452,6.47801299,78.149,78.101,11.5332]
[1770941974850,6.47801299,78.149,78.11,3.72894038]
[1770941976661,6.47486961,78.162,78.12,3.72894038]
[1770941976862,6.47486961,78.159,78.097,11.5338]
[1770941977057,6.47486961,78.159,78.1,3.72894038]
[1770941977460,6.47486961,78.141,78.09,3.72894038]
[1770941978766,6.48491579,78.137,78.09,3.72894038]
[1770941978967,6.48491579,78.137,78.088,11.5351]
[1770941979356,6.48491579,78.135,78.088,11.5351]
[1770941980561,6.48076695,78.133,78.088,11.5351]
[1770941980963,6.48076695,78.13,78.08,3.72894038]
[1770941981461,6.48076695,78.13,78.081,11.5361]
[1770941982668,6.47933267,78.126,78.07,3.72894038]
[1770941983175,6.47933267,78.109,78.054,15.90300515]
[1770941983472,6.47933267,78.109,78.05,3.72894038]
[1770941983772,6.47933267,78.109,78.043,102.18]
[1770941984769,6.44111402,78.107,78.055,11.5401]
[1770941985562,6.44111402,78.105,78.055,11.5401]
[1770941986563,3.72894038,78.1,78.055,11.5401]
[1770941986878,3.72894038,78.1,78.043,102.18]
[1770941986879,6.43948762,78.099,78.043,102.18]
[1770941987175,6.43948762,78.112,78.06,3.72894038]
[1770941987376,6.43948762,78.112,78.066,11.5384]
[1770941988169,3.72894038,78.11,78.05,105.92894038]
[1770941988373,6.44373602,78.109,78.05,105.92894038]
[1770941989079,6.44373602,78.107,78.059,11.5394]
[1770941990074,6.44373602,78.107,78.068,11.538]
[1770941990775,6.44373602,78.107,78.06,11.5393]
[1770941990974,6.44373602,78.107,78.06,3.72894038]
[1770941992077,11.5292,78.129,78.07,3.72894038]
[1770941992281,6.40446349,78.128,78.07,3.72894038]
[1770941992575,6.40446349,78.128,78.08,3.72894038]
[1770941992781,6.40446349,78.125,78.08,3.72894038]
[1770941993680,6.40446349,78.125,78.082,11.5361]
[1770941995084,6.44088849,78.122,78.071,11.5377]
[1770941995784,6.44088849,78.122,78.08,3.72894038]
[1770941997783,9.87,78.134,78.061,11.5392]
[1770941997784,6.46647517,78.116,78.061,11.5392]
[1770941998688,102.2,78.142,78.061,11.5392]
[1770941998689,6.45370379,78.109,78.061,11.5392]
[1770941999585,6.45370379,78.109,78.07,3.72894038]
[1770941999790,23.47142705,78.175,78.07,3.72894038]
[1770941999791,6.45370379,78.129,78.07,3.72894038]
[1770942000589,6.46674216,78.128,78.075,11.537]
[1770942000887,6.46674216,78.128,78.09,3.72894038]
[1770942001088,6.46674216,78.128,78.08,3.72894038]
[1770942002792,6.46674216,78.128,78.081,11.5361]
[1770942002992,6.46674216,78.128,78.08,3.73162224]
[1770942003692,6.46674216,78.128,78.09,3.73162224]
[1770942004195,6.46674216,78.128,78.077,11.5368]
[1770942004491,6.46674216,78.128,78.08,3.73162224]
[1770942005894,6.48911956,78.127,78.08,3.73162224]
[1770942006790,6.49877328,78.123,78.08,3.73162224]
[1770942007289,6.49877328,78.123,78.077,11.5368]
[1770942007885,6.49877328,78.119,78.068,11.5381]
[1770942008392,6.48489368,78.117,78.072,11.5374]
[1770942009487,6.48489368,78.117,78.061,11.5392]
[1770942009686,6.48489368,78.109,78.061,11.5392]
[1770942010785,6.49073234,78.108,78.061,11.5392]
[1770942011594,6.49073234,78.106,78.061,11.5392]
[1770942012596,6.44429867,78.104,78.061,11.5392]
[1770942013895,6.44429867,78.102,78.061,11.5392]
[1770942015891,6.44429867,78.102,78.035,102.22]
[1770942015892,6.44084971,78.093,78.05,3.36069452]
[1770942016892,6.44084971,78.093,78.04,3.36069452]
[1770942017098,6.4332094,78.09,78.04,3.36069452]
[1770942017598,6.4332094,78.088,78.043,11.5418]
[1770942018299,6.42700795,78.1,78.06,3.36069452]
[1770942018594,6.42700795,78.1,78.05,3.36069452]
[1770942018900,6.42700795,78.099,78.05,3.36069452]
[1770942019903,6.42700795,78.091,78.05,3.36069452]
[1770942022295,3.36069452,78.09,78.035,102.22]
[1770942022500,6.4314896,78.089,78.04,3.36069452]
[1770942023302,11.74,78.107,78.035,102.22]
[1770942023303,6.4314896,78.106,78.06,3.36069452]
[1770942024000,6.4314896,78.106,78.07,3.36069452]
[1770942025599,6.4314896,78.106,78.063,11.5388]
[1770942027698,11.74,78.107,78.08,3.36069452]
[1770942028496,2.51800001,78.107,78.09,3.36069452]
[1770942028700,17.96546252,78.133,78.09,3.36069452]
[1770942028903,7.69576252,78.147,78.1,3.36069452]
[1770942029607,7.69576252,78.144,78.1,3.36069452]
[1770942034305,7.72748695,78.159,78.103,11.5329]
[1770942034510,7.72748695,78.159,78.12,3.36069452]
[1770942034708,11.90896902,78.184,78.13,3.36069452]
[1770942034709,7.72748695,78.172,78.13,3.36069452]
[1770942034898,7.72748695,78.172,78.14,3.36069452]
[1770942035604,7.72748695,78.172,78.15,3.36069452]
[1770942035904,7.72748695,78.172,78.11,102.22]
[1770942035905,7.72748695,78.159,78.11,3.36069452]
[1770942038704,11.5252,78.156,78.11,3.36069452]
[1770942038907,7.60091414,78.155,78.11,3.36069452]
[1770942039707,7.60091414,78.153,78.11,3.36069452]
[1770942039908,7.60091414,78.153,78.12,3.36069452]
[1770942042915,10.57,78.16,78.14,3.36069452]
[1770942048616,10.57,78.16,78.131,11.5288]
[1770942052727,10.57,78.16,78.14,3.36069452]
[1770942052923,7.6175154,78.159,78.12,3.36069452]
[1770942053221,7.6175154,78.159,78.114,11.5313]
[1770942055615,7.61384812,78.156,78.11,3.36069452]
[1770942056722,7.60684317,78.154,78.11,3.36069452]
[1770942058931,7.60684317,78.154,78.12,3.36069452]
[1770942059625,7.60684317,78.154,78.11,3.36069452]
[1770942060932,7.69269886,78.139,78.087,102.16]
[1770942061123,7.69269886,78.139,78.09,3.36069452]
[1770942061524,7.69269886,78.135,78.09,3.36069452]
[1770942062025,7.69269886,78.135,78.066,102.16]
[1770942062026,7.69269886,78.135,78.1,3.36069452]
[1770942062230,7.69269886,78.135,78.094,11.5343]
[1770942062421,7.69269886,78.135,78.08,3.36069452]
[1770942062817,7.69880219,78.125,78.08,3.36069452]
[1770942063019,7.69880219,78.125,78.08,3.35894615]
[1770942068630,7.69880219,78.125,78.09,3.35894615]
[1770942069230,7.69880219,78.125,78.061,102.18]
[1770942069231,7.69880219,78.125,78.08,3.35894615]
[1770942070731,7.78200774,78.123,78.08,3.35894615]
[1770942071535,7.78200774,78.12,78.08,3.35894615]
[1770942074837,7.77955253,78.139,78.09,3.35894615]
[1770942075843,7.77955253,78.136,78.09,3.35894615]
[1770942076337,7.78700585,78.157,78.11,14.89084615]
[1770942077445,7.78700585,78.157,78.11,11.5319]
[1770942077739,11.5254,78.155,78.11,11.5319]
[1770942077950,7.78700585,78.154,78.11,11.5319]
[1770942078540,7.75984956,78.141,78.092,11.5346]
[1770942080342,7.75984956,78.141,78.098,11.5336]
[1770942080543,7.73134395,78.154,78.11,3.35894615]
[1770942080846,7.73134395,78.154,78.062,38.48]
[1770942080847,7.73134395,78.154,78.1,3.35894615]
[1770942081047,7.73134395,78.149,78.1,3.35894615]
[1770942081847,7.73134395,78.145,78.096,11.534]
[1770942082748,7.76135379,78.142,78.096,11.534]
[1770942083350,10.57,78.16,78.09,3.35894615]
[1770942083351,7.76135379,78.139,78.09,3.35894615]
[1770942083646,7.76135379,78.135,78.09,3.35894615]
[1770942084745,7.76135379,78.135,78.091,11.5347]
[1770942084943,7.76339834,78.133,78.08,3.35894615]
[1770942085142,7.76339834,78.129,78.07,3.35894615]
[1770942086553,7.76339834,78.129,78.08,3.35894615]
[1770942086748,3.35894615,78.13,78.08,3.35894615]
[1770942086749,7.76831058,78.122,78.08,3.35894615]
[1770942088350,7.77604668,78.119,78.07,3.35894615]
[1770942088551,7.77604668,78.109,78.06,3.35894615]
[1770942089058,7.77604668,78.103,78.053,11.5403]
[1770942089251,7.77604668,78.099,78.053,11.5403]
[1770942091153,7.70200363,78.096,78.045,11.5415]
[1770942091458,7.70200363,78.089,78.04,3.35894615]
[1770942091659,3.35894615,78.11,78.06,3.35894615]
[1770942091842,7.70200363,78.109,78.06,3.35894615]
[1770942092248,7.70200363,78.109,78.08,3.35894615]
[1770942092967,7.70200363,78.109,78.034,23.0864]
[1770942093160,7.70200363,78.109,78.07,3.35894615]
[1770942093753,3.35894615,78.12,78.012,40.70875478]
[1770942093754,7.70550725,78.107,78.06,3.35894615]
[1770942094655,7.70550725,78.107,78.07,3.35894615]
[1770942095252,7.83750446,78.105,78.06,3.35894615]
[1770942097051,7.83750446,78.105,78.07,3.35894615]
[1770942097561,7.83047693,78.125,78.08,3.35894615]
[1770942097864,7.83047693,78.125,78.09,3.35894615]
[1770942098051,7.81790384,78.149,78.1,3.35894615]
[1770942098862,7.81790384,78.139,78.1,3.35894615]
[1770942100964,7.81790384,78.139,78.08,7.49305834]
[1770942102861,7.81790384,78.139,78.092,11.5346]
[1770942106054,7.81790384,78.139,78.062,23.8539958]
[1770942106261,7.84835243,78.119,78.044,23.8539958]
[1770942106460,7.84835243,78.119,78.045,102.2]
[1770942107259,7.84835243,78.119,78.059,11.5394]
[1770942107767,7.84835243,78.119,78.06,7.49305834]
[1770942108659,7.7159915,78.118,78.059,11.5394]
[1770942109162,7.7159915,78.113,78.048,11.541]
[1770942110465,7.68546237,78.105,78.044,102.2]
[1770942111058,7.68546237,78.104,78.045,11.5415]
[1770942113266,14.23,78.103,78.045,11.5415]
[1770942113460,7.68644421,78.102,78.053,11.5404]
[1770942114275,7.68546649,78.097,78.044,102.2]
[1770942114571,7.68546649,78.097,78.043,11.5417]
[1770942115476,7.68546649,78.095,78.032,113.7634]
[1770942115668,14.23,78.103,77.99,7.49305834]
[1770942115669,7.68546649,78.093,77.99,7.49305834]
[1770942115972,7.68546649,78.091,77.995,2.2298187]
[1770942116273,7.68434441,78.089,77.995,2.2298187]
[1770942116571,7.68434441,78.062,78.011,11.5465]
[1770942119273,7.68434441,78.062,78.018,11.5454]
[1770942119874,7.68646116,78.07,78.018,11.5454]
[1770942120171,7.68646116,78.07,78.01,7.49305834]
[1770942120962,7.68646116,78.07,78.02,3.3634501]
[1770942121268,7.6801014,78.067,78.02,3.3634501]
[1770942121875,7.6801014,78.063,78.02,3.3634501]
[1770942122074,7.6801014,78.063,78.01,3.3634501]
[1770942122575,7.733946,78.06,78.01,3.3634501]
[1770942122774,7.733946,78.059,78.0,3.3634501]
[1770942122985,7.733946,78.049,77.99,3.3634501]
[1770942123875,7.733946,78.047,77.99,3.3634501]
[1770942124067,3.3634501,78.04,77.986,11.5502]
[1770942124269,7.72871215,78.039,77.986,11.5502]
[1770942124675,7.72871215,78.039,77.98,3.3634501]
[1770942124869,7.72871215,78.039,77.98,3.36741482]
[1770942125877,7.72871215,78.037,77.981,11.5509]
[1770942126078,7.72871215,78.037,77.98,3.36741482]
[1770942126275,3.36741482,78.04,77.98,3.36741482]
[1770942126276,7.82028477,78.027,77.98,3.36741482]
[1770942126669,7.82028477,78.047,78.0,3.36741482]
[1770942126875,7.82028477,78.047,78.01,3.36741482]
[1770942130089,7.90315341,78.045,78.0,3.36741482]
[1770942132488,7.90315341,78.045,78.01,3.36741482]
[1770942132689,7.90315341,78.045,78.0,3.36741482]
[1770942132885,7.90315341,78.045,78.004,11.5476]
[1770942133081,7.90315341,78.045,78.01,3.36741482]
[1770942135592,7.90315341,78.045,78.0,3.36741482]
[1770942136180,7.90315341,78.045,77.995,11.5489]
[1770942136395,7.90315341,78.045,78.0,3.36741482]
[1770942136889,7.89065966,78.042,78.0,3.36741482]
[1770942137994,7.86957265,78.034,77.955,2.23085503]
[1770942138187,7.86957265,78.029,77.98,3.36741482]
[1770942139185,7.86957265,78.029,77.955,2.23085503]
[1770942139387,7.86957265,78.02,77.98,3.36741482]
[1770942141396,7.86957265,78.02,77.953,102.3]
[1770942141397,7.82571585,78.013,77.97,3.36741482]
[1770942142793,7.90261608,78.011,77.97,3.36741482]
[1770942143999,7.90261608,78.011,77.98,3.36741482]
[1770942144392,7.90261608,78.011,77.97,3.36741482]
[1770942145702,7.90261608,78.011,77.98,3.36741482]
[1770942146103,7.90261608,78.011,77.97,3.36741482]
[1770942146802,7.90261608,78.011,77.948,102.32]
[1770942146803,11.5452,78.021,77.98,3.36741482]
[1770942147097,11.5452,78.021,77.945,2.2311697]
[1770942147098,7.87233377,78.033,77.99,3.36741482]
[1770942147603,7.87233377,78.033,77.98,3.36741482]
[1770942147791,3.36741482,78.04,77.98,3.36741482]
[1770942147792,7.87233377,78.031,77.98,3.36741482]
[1770942148198,7.82996569,78.021,77.98,3.36741482]
[1770942149701,11.5453,78.02,77.98,3.36741482]
[1770942149901,7.82996569,78.019,77.98,3.36741482]
[1770942150404,7.82516396,78.017,77.97,3.36741482]
[1770942151701,7.82465285,78.012,77.97,3.36741482]
[1770942154302,7.82882187,78.008,77.97,3.36741482]
[1770942156905,7.83355669,78.022,77.99,3.36741482]
[1770942158209,11.5453,78.02,77.98,3.36741482]
[1770942158510,7.86816676,78.019,77.98,3.36741482]
[1770942159615,11.5456,78.018,77.98,3.36741482]
[1770942159813,19.41376676,78.018,77.98,3.36741482]
[1770942160012,7.86816676,78.018,77.98,3.36741482]
[1770942161213,7.86816676,78.018,77.97,3.36741482]
[1770942161806,7.89854783,78.016,77.97,3.36741482]
[1770942162208,7.89854783,78.016,77.967,11.553]
[1770942162409,6.7672252,77.964,77.885,15.93916018]
[1770942162712,6.7672252,77.969,77.93,3.36741482]
[1770942162915,6.7672252,77.982,77.93,3.36741482]
[1770942163313,6.7672252,77.982,77.928,102.34]
[1770942163615,11.26,77.981,77.93,3.36741482]
[1770942164211,11.26,77.981,77.928,102.34]
[1770942164212,6.58402183,77.98,77.928,102.34]
[1770942164413,6.58402183,77.98,77.92,3.36741482]
[1770942164614,6.58402183,77.979,77.92,3.36741482]
[1770942164812,6.58402183,77.979,77.921,102.34]
[1770942165014,3.36741482,77.97,77.911,11.5614]
[1770942165215,6.58402183,77.969,77.912,102.34]